[Event "46th Barbera del Valles Open-A 2024"]
[Site "Barbera del Valles"]
[Date "2024.07.05"]
[Round "2.4"]
[White "Navalgund, Niranjan"]
[Black "Diaz Perez, Michel Alejandro"]
[Result "0-1"]
[ECO "E04"]
[WhiteElo "2149"]
[BlackElo "2486"]
[Annotator "TA"]
[PlyCount "140"]
[EventDate "2024.06.25"]
[EventType "swiss"]
[EventCountry "ESP"]
[SourceTitle "playchess.com"]
[Source "ChessBase"]
[SourceQuality "1"]
[TimeControl "5400+30"]

{[%evp 22,140,52,33,36,40,31,27,28,40,50,23,19,30,22,27,36,32,28,30,25,24,50,45,53,42,45,52,49,42,42,42,44,35,46,37,35,22,25,35,23,36,49,54,125,0,0,0,1,0,0,0,14,14,18,35,29,45,888,0,52,60,67,79,91,72,84,18,18,10,13,-350,-350,-350,-344,-410,-410,-387,-357,-456,-456,-456,-456,-456,-456,-456,-456,-456,-456,-456,-456,-456,-441,-441,-441,-412,-354,-354,-354,-354,-374,-375,-374,-29972,-29970,-29974,-29975,-29975,-29975,-29975,-29976,-29976,-29977,-29977,-29978,-29978,-29979,-29979,-29982,-29980,-29980]} 1. Nf3 {[%emt 0:00:19]} Nf6 {[%emt 0:00:20]} 2. g3 {[%emt 0:00:02]} d5 {[%emt 0:00:13]} 3. c4 {[%emt 0:00:20]} e6 {[%emt 0:00:09]} 4. Bg2 {[%emt 0:00:06]} c5 {[%emt 0:04:33]} 5. d4 {[%emt 0:01:12]} Nc6 {[%emt 0:01:08]} 6. O-O {[%emt 0:00:42]} dxc4 {[%emt 0:01:52]} 7. dxc5 {[%emt 0:00:05]} Qxd1 {[%emt 0:01:17]} 8. Rxd1 {[%emt 0:00:02]} Bxc5 {[%emt 0:00:09]} 9. Nbd2 {[%emt 0:00:04]} c3 {[%emt 0:02:57]} 10. bxc3 {[%emt 0:00:02]} O-O {[%emt 0:00:11]} 11. Nb3 {[%emt 0:00:02]} Bb6 {[%emt 0:03:59] E04: Open Catalan: 5 Nf3.} 12. Nfd4 {[%emt 0:03:36]} Bd7 {[%emt 0:05:27]} 13. Nb5 {[%emt 0:06:04]} Ne5 {[%emt 0:10:15]} 14. Nd6 {[%emt 0:01:46]} Bc6 {[%emt 0:00:18]} 15. c4 {[%emt 0:05:44]} Bc7 $146 {[%emt 0:06:58]} ({Predecessor:} 15... Rfd8 16. Bf4 Ng6 17. Nxb7 Rxd1+ 18. Rxd1 Nxf4 19. gxf4 Bxb7 20. Bxb7 Rb8 21. c5 Rxb7 22. cxb6 g6 23. bxa7 Rxa7 24. Ra1 Ra3 25. e3 {½-½ Varney,Z (1989)-Foisor,M (2198) BCF-chT 2223 (4NCL) 2022 (1.3)}) 16. Ba3 {[%emt 0:20:48]} Rfd8 {[%emt 0:04:56]} 17. Nxb7 {[%emt 0:04:24]} Rxd1+ {[%emt 0:01:27]} 18. Rxd1 {[%emt 0:00:02]} Bxg2 {[%emt 0:00:37]} 19. Kxg2 {[%emt 0:00:02]} Nxc4 {[%emt 0:00:10]} 20. Rc1 {[%emt 0:01:25]} Nxa3 {[%emt 0:02:30]} 21. Rxc7 {[%emt 0:00:19]} Ne8 {[%emt 0:05:00]} 22. Rc6 {[%emt 0:05:46]} g6 {[%emt 0:03:26]} 23. f4 {[%emt 0:15:26]} Nf6 {[%emt 0:05:58]} 24. Nd6 {[%emt 0:03:15]} a6 {[%emt 0:09:17]} 25. e4 {[%emt 0:14:45]} Nb5 {[%emt 0:02:03]} 26. e5 {[%emt 0:00:02]} Nd5 $1 {[%emt 0:01:34]} 27. a4 {[%emt 0:02:28]} Nbc3 {[%emt 0:06:14]} 28. Nc5 {[%emt 0:03:59]} a5 $1 {[%emt 0:01:05]} 29. Nde4 {[%emt 0:00:27]} Nxe4 {[%emt 0:04:21]} 30. Nxe4 {[%emt 0:00:02]} Kg7 $1 {[%emt 0:01:41]} 31. Nd6 {[%emt 0:00:15]} Ne3+ {[%emt 0:03:16]} 32. Kf2 {[%emt 0:04:29]} Nf5 {[%emt 0:00:49] [#]} (32... Nd5 $14) 33. Ne4 {[%emt 0:00:07]} (33. g4 $1 $16 {[%cal Rg4f5]} Ne7 34. Rc7) 33... Rb8 $11 {[%emt 0:00:37]} 34. Rc7 {[%emt 0:01:03]} h6 {[%emt 0:01:13]} 35. g4 {[%emt 0:00:33]} Rb2+ {[%emt 0:03:45]} 36. Ke1 {[%emt 0:00:43]} Nh4 {[%emt 0:03:08]} 37. Nd6 {[%emt 0:00:15]} Ng2+ {[%emt 0:01:12]} 38. Kd1 {[%emt 0:00:05]} Ne3+ {[%emt 0:00:05]} 39. Kc1 {[%emt 0:00:08]} Rxh2 $2 {[%emt 0:01:09][%mdl 8192] [#]} (39... Rb4 $14) 40. Rxf7+ $2 {[%emt 0:00:13]} (40. Ne8+ $1 $18 Kf8 41. Nf6 Rh1+ 42. Kb2 Rh2+ 43. Kb3) 40... Kg8 {[%emt 0:00:02]} ({Better is} 40... Kh8 $1 $11) 41. Rf6 $1 $14 {[%emt 0:00:48]} Kh7 {[%emt 0:00:47]} 42. Rxe6 {[%emt 0:02:34]} Nxg4 {[%emt 0:00:01]} 43. Re7+ {[%emt 0:00:24]} Kg8 {[%emt 0:00:08]} 44. e6 {[%emt 0:01:26]} (44. Re8+ $16 Kh7 45. Ra8) 44... Re2 $11 {[%emt 0:00:08]} 45. Kd1 {[%emt 0:00:29]} Re3 $1 {[%emt 0:00:03]} 46. f5 $2 {[%emt 0:00:09][%mdl 8192]} (46. Kd2 $11 {and White is okay.}) 46... Rd3+ $19 {[%emt 0:00:44]} 47. Ke2 {[%emt 0:00:12]} Rxd6 {[%emt 0:00:02]} 48. Rd7 {[%emt 0:00:17]} Rc6 {[%emt 0:01:53]} 49. Rd8+ {[%emt 0:00:41]} Kg7 {[%emt 0:00:01]} 50. e7 {[%emt 0:00:24]} Nf6 {[%emt 0:00:02]} (50... gxf5 $2 {perishes.} 51. e8=Q (51. e8=R Kf6 $16) 51... Rc2+ 52. Kd3 $18) 51. e8=Q {[%emt 0:00:21]} Nxe8 {[%emt 0:00:01]} 52. Rxe8 {[%emt 0:00:06]} Rc4 {[%emt 0:02:10]} ({Weaker is} 52... gxf5 53. Re5 $15) 53. fxg6 {[%emt 0:00:16]} Kxg6 {[%emt 0:00:37]} (53... Rxa4 54. Re6 $19) 54. Re5 {[%emt 0:00:33]} Rxa4 {[%emt 0:00:03]} 55. Kf3 {[%emt 0:00:26]} h5 {[%emt 0:00:10]} 56. Rb5 {[%emt 0:00:45]} h4 {[%emt 0:00:16]} 57. Kg2 {[%emt 0:00:29]} Ra3 {[%emt 0:00:04]} 58. Kh2 {[%emt 0:00:20]} h3 {[%emt 0:01:51]} 59. Re5 {[%emt 0:00:55]} Kf6 {[%emt 0:00:12]} 60. Re8 {[%emt 0:00:17]} a4 {[%emt 0:00:18]} 61. Re4 {[%emt 0:00:26]} Kf5 {[%emt 0:00:07]} 62. Re8 $2 {[%emt 0:00:14]} (62. Rb4 $19 Ra1 63. Kxh3) 62... Rb3 {[%emt 0:00:09]} 63. Re7 {[%emt 0:00:31]} a3 {[%emt 0:00:09]} 64. Re8 {[%emt 0:01:07]} Kf4 {[%emt 0:01:26]} 65. Re7 {[%emt 0:01:21]} a2 {[%emt 0:00:14]} 66. Ra7 {[%emt 0:00:32]} Rb2+ {[%emt 0:00:04]} 67. Kxh3 {[%emt 0:00:04]} Ke3 {[%emt 0:00:04]} 68. Kg3 {[%emt 0:02:48]} Kd3 {[%emt 0:00:08]} 69. Kf3 {[%emt 0:00:09]} Kc2 {[%emt 0:00:10]} 70. Ke3 {[%emt 0:00:12]} Kb1 {[%emt 0:00:17]} 0-1

[Event "46th Barbera del Valles Open-A 2024"]
[Site "Barbera del Valles"]
[Date "2024.07.05"]
[Round "2.5"]
[White "Solodovnichenko, Yuri"]
[Black "Kanakova, Natalie"]
[Result "1-0"]
[ECO "C77"]
[WhiteElo "2481"]
[BlackElo "2167"]
[Annotator "TA"]
[PlyCount "53"]
[EventDate "2024.06.25"]
[EventType "swiss"]
[EventCountry "ESP"]
[SourceTitle "playchess.com"]
[Source "ChessBase"]
[SourceQuality "1"]
[TimeControl "5400+30"]

{[%evp 14,53,38,39,43,49,50,47,54,65,71,42,81,56,86,81,102,98,100,92,106,73,81,77,84,84,83,93,96,75,214,228,372,368,402,183,785,775,750,768,684,472]} 1. e4 {[%emt 0:00:03]} e5 {[%emt 0:00:07]} 2. Nf3 {[%emt 0:00:05]} Nc6 {[%emt 0:00:05]} 3. Bb5 {[%emt 0:00:28]} a6 {[%emt 0:00:10]} 4. Ba4 {[%emt 0:00:04]} Nf6 {[%emt 0:00:07]} 5. Nc3 {[%emt 0:01:23]} d6 {[%emt 0:07:16]} 6. Bxc6+ {[%emt 0:00:36]} bxc6 {[%emt 0:00:07]} 7. d4 {[%emt 0:00:04]} exd4 {[%emt 0:00:58]} 8. Nxd4 {[%emt 0:00:06]} c5 {[%emt 0:03:54]} 9. Nc6 {[%emt 0:00:06][%cal Bd4c6,Bc6a5,Ba5b3,Bb3d2,Bd2e4][%mdl 32]} Qd7 {[%emt 0:00:20]} 10. Na5 {[%emt 0:00:05] A dynamic duo of knights.} Be7 {[%emt 0:02:40] White is slightly better.} 11. O-O {[%emt 0:00:06]} O-O {[%emt 0:02:11]} 12. h3 {[%emt 0:02:40]} Re8 {[%emt 0:02:20]} 13. Re1 {[%emt 0:02:10]} Bd8 {[%emt 0:02:46]} 14. Bf4 {[%emt 0:04:13]} c6 {[%emt 0:10:09]} 15. Nb3 {[%emt 0:09:59] White is more active.} c4 {[%emt 0:11:18] [#]} 16. Nd2 {[%emt 0:00:30]} d5 {[%emt 0:10:30]} 17. e5 {[%emt 0:00:05]} d4 {[%emt 0:04:39]} 18. exf6 {[%emt 0:02:32]} dxc3 {[%emt 0:00:41]} 19. bxc3 {[%emt 0:00:18]} ({Of course not} 19. Rxe8+ $6 Qxe8 20. bxc3 Bxf6 $11) 19... Bxf6 {[%emt 0:04:30]} 20. Qf3 {[%emt 0:01:11] Hoping for Ne4.} ({Reject} 20. Nxc4 Qxd1 21. Rexd1 (21. Raxd1 Rxe1+ 22. Rxe1 Be6 $11) 21... Bxc3 $11) 20... Bb7 {[%emt 0:01:11]} 21. Ne4 $36 {[%emt 0:05:34][%mdl 2048] Keeping Black busy.} Be7 {[%emt 0:01:07] This costs Black the game.} (21... c5 $16) 22. Rad1 $18 {[%emt 0:00:23]} Qf5 {[%emt 0:02:25]} (22... Qc8 {might work better.} 23. Rb1 Rd8) 23. Rb1 {[%emt 0:03:39]} Qc8 {[%emt 0:02:58]} 24. Be5 {[%emt 0:07:30]} (24. Qg3 $142 {Threatens to win with Bh6.} Kh8 25. Nd2) 24... Kf8 $2 {[%emt 0:14:18] [#]} (24... f6) 25. Nd6 {[%emt 0:00:45] White is clearly winning.} Bxd6 {[%emt 0:02:35]} 26. Bxd6+ {[%emt 0:00:05]} Kg8 {[%emt 0:00:08]} 27. Rxe8+ {[%emt 0:00:04] Weighted Error Value: White=0.23 (precise) /Black=0.29 (precise) .  Mistake:       	White=1     	Black=3      Inaccurate:     	White=2     	Black=2      OK:         	White=10    	Black=8      Best:        	White=1     	Black=2} 1-0

[Event "46th Barbera del Valles Open-A 2024"]
[Site "Barbera del Valles"]
[Date "2024.07.05"]
[Round "2.6"]
[White "Narciso Dublan, Marc"]
[Black "Fernandez Climent, Albert"]
[Result "1-0"]
[ECO "A39"]
[WhiteElo "2432"]
[BlackElo "2102"]
[Annotator "TA"]
[PlyCount "117"]
[EventDate "2024.06.25"]
[EventType "swiss"]
[EventCountry "ESP"]
[SourceTitle "playchess.com"]
[Source "ChessBase"]
[SourceQuality "1"]
[TimeControl "5400+30"]

{[%evp 26,117,130,138,153,158,153,150,150,143,149,152,144,65,92,0,5,14,2,0,40,13,165,131,406,402,402,399,293,258,272,60,80,81,81,81,72,78,73,71,72,64,244,212,402,275,267,260,441,432,402,371,352,204,168,161,265,58,57,56,79,57,267,268,230,230,2591,2229,29963,29964,29962,29964,29962,29960,29961,29960,12850,29939,29981,29982,29982,29983,29985,29981,29985,29986,29986,29987,29987,29988,29988,29986,29986,29987]} 1. c4 {[%emt 0:00:10]} c5 {[%emt 0:00:49]} 2. Nf3 {[%emt 0:00:36]} Nc6 {[%emt 0:00:21]} 3. d4 {[%emt 0:02:14]} cxd4 {[%emt 0:00:57]} 4. Nxd4 {[%emt 0:00:03]} d6 {[%emt 0:01:31]} 5. g3 {[%emt 0:02:38]} g6 {[%emt 0:07:11]} 6. Bg2 {[%emt 0:00:37]} Bd7 {[%emt 0:00:09]} 7. Nc3 {[%emt 0:05:16]} Bg7 {[%emt 0:00:39]} 8. Be3 {[%emt 0:03:17]} Nf6 {[%emt 0:03:15]} 9. h3 {[%emt 0:00:14]} O-O {[%emt 0:07:30]} 10. Rc1 {[%emt 0:00:51]} a6 {[%emt 0:03:25]} 11. O-O {[%emt 0:01:54]} Qa5 {[%emt 0:05:43] A39: Symmetrical English vs ...g6: 4 Bg2 Bg7 5 Nf3 Nf6 6 0-0 0-0 7 d4.} 12. Nb3 $146 {[%emt 0:24:05]} ({Predecessor:} 12. c5 Nxd4 13. Bxd4 e5 14. Be3 dxc5 15. Qd6 Rad8 16. Qxc5 Qxc5 17. Bxc5 Rfe8 18. Bb6 Rc8 19. Rcd1 {1-0 Ackermann,H (2190)-Mann,G (1470) Muensterland op 38th 2021 (7)}) 12... Qh5 {[%emt 0:16:44]} 13. Nd5 {[%emt 0:00:28]} Nxd5 {[%emt 0:04:44]} 14. cxd5 {[%emt 0:00:25]} Ne5 {[%emt 0:02:22]} 15. f4 {[%emt 0:03:47]} Bxh3 {[%emt 0:03:37]} 16. fxe5 {[%emt 0:00:26]} Bxe5 {[%emt 0:01:07]} 17. Bf4 {[%emt 0:02:55]} Bxb2 {[%emt 0:03:43]} 18. Rc7 $1 {[%emt 0:05:29]} g5 {[%emt 0:10:10] [#]} 19. Bc1 {[%emt 0:04:07]} (19. Bd2 $1 $16) 19... Be5 {[%emt 0:02:21]} 20. Qd3 {[%emt 0:25:43]} (20. Rxb7 $2 Bc8 21. Rxe7 Bxg3 $19) (20. Rxe7 Bxg3 21. Re3 Qg4 22. Rxg3 (22. Rff3 $2 Bh2+ 23. Kf2 Qxg2+ $19) 22... Qxg3 $14) (20. e4 $16 Bg4 21. Qd2) 20... Rac8 {[%emt 0:16:24]} 21. Rxc8 $1 {[%emt 0:00:39]} (21. Rxe7 $2 Rc3 22. g4 (22. Rxe5 $2 Rxd3 23. Rxg5+ Qxg5 $19) 22... Qxg4 $19 (22... Bxg4 23. Rxe5 Rxd3 24. Rxg5+ $14)) 21... Rxc8 {[%emt 0:08:18]} 22. Bd2 {[%emt 0:00:39]} Bd7 {[%emt 0:00:00]} 23. Be4 {[%emt 0:09:35]} Kg7 $2 {[%emt 0:00:00]} (23... Bb5 $11 {and Black is okay.} 24. Qe3 Bxe2 (24... Qxe2 $2 25. Qxg5+ Kh8 26. Re1 $18)) 24. Nd4 $18 {[%emt 0:00:53]} h6 $2 {[%emt 0:00:52][%mdl 8192]} (24... f6 $16 {keeps fighting.} 25. Ne6+ Bxe6 26. dxe6 Qh3) 25. Bf5 $18 {[%emt 0:01:03]} Bxf5 {[%emt 0:00:34]} 26. Nxf5+ {[%emt 0:00:08]} Kf8 {[%emt 0:00:04]} 27. Rf2 {[%emt 0:01:33]} Qg6 {[%emt 0:00:45] [#]} 28. Nxh6 $2 {[%emt 0:03:39]} (28. Qb3 $1 $18 {[%cal Of5e7][%mdl 512] Hoping for Nxe7!} b5 (28... Rc7 29. Qb6) 29. Qa3) 28... Qxd3 $1 $14 {[%emt 0:00:40]} (28... Qxh6 $2 29. Qf5 Kg7 30. Qxf7+ (30. Qxc8 Qg6 $18) 30... Kh8 31. Rh2 $18) 29. Rxf7+ {[%emt 0:00:02]} (29. exd3 $2 Bd4 30. Ng4 Bxf2+ 31. Kxf2 Rc2 $19) 29... Ke8 {[%emt 0:00:07]} 30. exd3 {[%emt 0:00:03]} Bf6 {[%emt 0:00:34]} 31. Rh7 {[%emt 0:00:41]} Rc2 {[%emt 0:00:30]} 32. Be3 {[%emt 0:00:32]} Rxa2 {[%emt 0:00:44]} 33. Ng4 {[%emt 0:01:22]} Ra1+ $2 {[%emt 0:00:33]} ({Black should play} 33... Ra3 $1 $14) 34. Kg2 {[%emt 0:00:11]} Ra3 $2 {[%emt 0:00:22]} (34... Ra5 35. Nxf6+ exf6 36. Rxb7 Rxd5) 35. Nxf6+ {[%emt 0:00:47]} exf6 {[%emt 0:00:02]} 36. Kf3 {[%emt 0:00:38]} Rxd3 $2 {[%emt 0:00:22]} (36... f5 {might work better.} 37. Bxg5 (37. Rxb7 Rxd3 38. Ke2 Ra3 $18) 37... Rxd3+ 38. Kf4 Rxd5 39. Re7+ (39. Rxb7 a5 $18) 39... Kf8 40. Rxb7 a5) 37. Ke4 $18 {[%emt 0:00:06]} (37. Rxb7 Rxd5 38. Kg4 a5 $16) 37... Rb3 {[%emt 0:00:10]} 38. g4 {[%emt 0:00:29]} a5 {[%emt 0:00:15]} 39. Bd4 {[%emt 0:00:13]} (39. Bc1 $142) 39... Rb4 $18 {[%emt 0:00:12]} 40. Kd3 {[%emt 0:00:51]} a4 {[%emt 0:00:29]} (40... Rb5 {is a better defense.} 41. Kc3 (41. Bxf6 Rxd5+ 42. Bd4 Rb5 $18) 41... a4 42. Bxf6 Rb3+ 43. Kc2 Rb4 44. Re7+ (44. Bxg5 Rxg4 45. Bf6 Rf4 $14) 44... Kf8) 41. Kc3 $2 {[%emt 0:00:59]} (41. Bxf6 $18 {And now Re7+ would win.} Rf4 42. Be7 (42. Bxg5 Rxg4 43. Bd2 a3 $18)) 41... Rb3+ $14 {[%emt 0:00:04]} 42. Kc2 {[%emt 0:00:03]} Rb4 {[%emt 0:00:14]} 43. Bxf6 {[%emt 0:00:08]} Rxg4 $2 {[%emt 0:02:02]} (43... a3 $1 $14) 44. Re7+ $18 {[%emt 0:00:13]} (44. Rxb7 Rc4+ 45. Kd3 Rf4 $18) 44... Kf8 {[%emt 0:00:10]} 45. Rxb7 {[%emt 0:00:04]} Re4 $2 {[%emt 0:00:16]} (45... a3 46. Ra7 Ke8) 46. Kd3 $18 {[%emt 0:00:40]} Re1 {[%emt 0:01:05]} 47. Bxg5 {[%emt 0:00:57]} Re5 {[%emt 0:00:30]} 48. Bh6+ {[%emt 0:00:13]} Ke8 {[%emt 0:00:24]} 49. Kc4 {[%emt 0:00:24]} Re2 {[%emt 0:01:11]} 50. Ra7 {[%emt 0:00:49]} Rc2+ {[%emt 0:00:32]} 51. Kd3 {[%emt 0:00:37]} Rh2 {[%emt 0:00:14]} 52. Bf4 {[%emt 0:00:52]} Rh5 {[%emt 0:00:57]} 53. Ke4 {[%emt 0:00:19]} Rh4 {[%emt 0:00:18]} 54. Rxa4 {[%emt 0:00:16]} Kf7 {[%emt 0:00:25]} 55. Kf5 {[%emt 0:00:19]} Rh5+ {[%emt 0:00:18]} 56. Bg5 {[%emt 0:00:08]} Rh1 {[%emt 0:00:19]} 57. Ra7+ {[%emt 0:00:11]} Ke8 {[%emt 0:00:48]} 58. Ke6 {[%emt 0:00:24]} Re1+ {[%emt 0:00:32]} 59. Kxd6 {[%emt 0:00:11]} 1-0

[Event "46th Barbera del Valles Open-A 2024"]
[Site "Barbera del Valles"]
[Date "2024.07.05"]
[Round "2.7"]
[White "Kaustuv, Kundu"]
[Black "Kao, Jamison Edrich"]
[Result "1-0"]
[ECO "A21"]
[WhiteElo "2403"]
[BlackElo "2124"]
[Annotator "TA"]
[PlyCount "169"]
[EventDate "2024.06.25"]
[EventType "swiss"]
[EventCountry "ESP"]
[SourceTitle "playchess.com"]
[Source "ChessBase"]
[SourceQuality "1"]
[TimeControl "5400+30"]

{[%evp 10,169,8,0,0,-5,3,-9,4,-8,0,-18,0,-33,-18,-6,-16,-34,-29,-37,-25,-44,0,0,0,0,12,4,0,-61,-58,-68,-43,-63,-51,-67,-64,-56,-52,-55,-70,-69,-60,-77,-77,-69,-66,-68,-65,-70,-67,-70,-77,-66,-51,-51,-29,-47,-27,-36,0,0,0,0,0,0,0,0,0,0,0,0,73,56,62,63,48,55,62,65,52,87,200,200,276,82,82,82,82,82,82,44,121,89,96,89,89,82,89,89,89,82,89,82,89,82,82,0,89,82,82,82,82,82,167,133,118,130,160,108,234,234,234,234,295,295,456,456,446,264,262,264,264,179,168,0,264,264,264,264,264,264,476,461,446,264,264,264,264,241,241,234,241,241,264,264,264,234,29978,29979,29980,29981]} 1. c4 {[%emt 0:02:03]} e5 {[%emt 0:00:03]} 2. g3 {[%emt 0:01:42]} d6 {[%emt 0:00:13]} 3. Bg2 {[%emt 0:00:21]} f5 {[%emt 0:00:07]} 4. Nc3 {[%emt 0:00:47]} Nf6 {[%emt 0:00:09]} 5. d4 {[%emt 0:00:46]} Be7 {[%emt 0:01:15]} 6. Nf3 {[%emt 0:06:49]} e4 {[%emt 0:02:39]} 7. Nh4 {[%emt 0:00:37]} O-O {[%emt 0:03:20]} 8. Bg5 {[%emt 0:02:43]} c6 {[%emt 0:13:54] The position is equal.} 9. f3 {[%emt 0:07:30]} exf3 {[%emt 0:04:18]} 10. Nxf3 {[%emt 0:05:27]} Ne4 {[%emt 0:00:35]} 11. Bc1 {[%emt 0:03:07]} Nxc3 {[%emt 0:03:37]} 12. bxc3 {[%emt 0:00:07]} Nd7 {[%emt 0:00:03]} 13. O-O {[%emt 0:06:30]} Nb6 {[%emt 0:11:49]} 14. Qd3 {[%emt 0:03:12]} Be6 {[%emt 0:01:13]} 15. Nd2 {[%emt 0:00:20]} Qc8 {[%emt 0:00:33]} 16. a4 {[%emt 0:02:36]} Bg5 {[%emt 0:02:40]} 17. e3 {[%emt 0:01:46]} d5 {[%emt 0:03:00]} 18. c5 {[%emt 0:00:20]} Nd7 {[%emt 0:05:24]} 19. a5 {[%emt 0:02:29]} (19. c4 $11) 19... b5 $15 {[%emt 0:01:36]} 20. cxb6 {[%emt 0:03:32]} axb6 {[%emt 0:00:36]} 21. Ba3 {[%emt 0:00:28]} Re8 {[%emt 0:01:08]} 22. axb6 {[%emt 0:01:58]} Qa6 $1 {[%emt 0:01:21]} 23. Qxa6 {[%emt 0:09:47]} Bxe3+ {[%emt 0:01:02]} 24. Kh1 {[%emt 0:00:08]} Rxa6 {[%emt 0:00:07]} 25. Nb3 {[%emt 0:11:23] Black must now prevent Nc5.} Rxb6 {[%emt 0:01:17]} (25... Nxb6 26. Nc5 Raa8 27. Nxe6 Rxe6 28. Bc5 Rxa1 29. Rxa1 $11) 26. Nc5 {[%emt 0:00:06] [#]} Nxc5 $1 {[%emt 0:00:38]} 27. Bxc5 {[%emt 0:00:02]} Rb3 {[%emt 0:00:35]} 28. Ra6 {[%emt 0:00:25]} Rc8 {[%emt 0:05:58]} 29. Ra7 {[%emt 0:09:06] Re7 would now be deadly.} Rxc3 {[%emt 0:03:55][%cal Of5f4]} 30. Re7 {[%emt 0:00:13]} Bf7 {[%emt 0:00:06]} 31. Rxf5 {[%emt 0:00:23]} Rc1+ {[%emt 0:03:22]} 32. Rf1 {[%emt 0:00:12]} Rxf1+ {[%emt 0:00:41]} 33. Bxf1 {[%emt 0:00:05]} Bg5 {[%emt 0:00:13]} 34. Ra7 {[%emt 0:05:17]} Re8 {[%emt 0:04:22]} 35. Rc7 {[%emt 0:03:39]} Re1 {[%emt 0:03:09]} 36. Kg2 {[%emt 0:00:39]} Re6 {[%emt 0:02:54]} 37. h4 {[%emt 0:01:07]} Bf6 {[%emt 0:03:29]} 38. Kf3 {[%emt 0:00:46]} g5 {[%emt 0:02:17]} 39. Rc8+ {[%emt 0:04:56]} Kg7 {[%emt 0:07:32]} 40. Bf8+ {[%emt 0:00:18]} Kg6 {[%emt 0:00:10]} (40... Kg8 $11 {keeps the balance.}) 41. Bd3+ $16 {[%emt 0:00:28]} Kh5 {[%emt 0:00:18]} 42. Bf5 {[%emt 0:00:10] Bg4+ would kill now.} (42. Bxh7 Bxd4 (42... gxh4 43. Bf5 $11) 43. hxg5 Kxg5 $17) 42... gxh4 $1 {[%emt 0:04:51]} 43. Rc7 {[%emt 0:02:28]} (43. Bxh7 Bxd4 44. Bf5 Re3+ 45. Kf4 Rxg3 $19) 43... Kg5 {[%emt 0:02:38]} 44. Bxe6 {[%emt 0:00:09]} (44. Rxf7 $2 Kxf5 45. Rxh7 hxg3 $19 (45... Bxd4 $2 46. Rh5+ Kg6 47. Rxh4 $19)) 44... Bxe6 {[%emt 0:00:04]} 45. gxh4+ $14 {[%emt 0:00:16][%mdl 4096] Endgame. KRB-KB} (45. Rxc6 Bg4+ 46. Kg2 h3+ 47. Kh2 Bxd4 $11) 45... Kf5 {[%emt 0:00:55]} (45... Kg6 $16) 46. Rxh7 $18 {[%emt 0:02:39] And now h5 would win.} ({Not} 46. Rxc6 Bxd4 47. Rc7 h5 $14) 46... Bxd4 {[%emt 0:00:11] [#]} 47. Rc7 $2 {[%emt 0:00:33]} (47. Bg7 $1 $18 {[%cal Rg7d4] is the precise move to win.} Bc5 48. Rh5+ Kg6 49. Rh6+ Kf7 50. Be5) 47... Be5 $16 {[%emt 0:01:26]} 48. Rxc6 {[%emt 0:00:14] White is more active.} Bf7 {[%emt 0:00:34]} 49. Be7 {[%emt 0:02:48]} Bh5+ {[%emt 0:00:47]} 50. Ke3 {[%emt 0:00:35]} Bg3 {[%emt 0:00:58]} (50... Kg4 $14) 51. Rc5 {[%emt 0:01:03]} Bf7 {[%emt 0:00:51]} 52. Kf3 {[%emt 0:00:24]} Be5 {[%emt 0:00:31]} 53. Rb5 {[%emt 0:00:20]} Bh5+ {[%emt 0:00:32]} 54. Ke3 {[%emt 0:00:05]} Bf7 {[%emt 0:00:06]} 55. Bg5 {[%emt 0:00:49]} Kg4 {[%emt 0:00:33]} 56. Bd8 {[%emt 0:00:37]} Kf5 {[%emt 0:00:21]} 57. Rb7 {[%emt 0:00:19]} Bg6 {[%emt 0:00:21]} 58. Rb5 {[%emt 0:01:07]} Bf7 {[%emt 0:00:43]} 59. Ra5 {[%emt 0:00:13]} Bf4+ {[%emt 0:00:44]} 60. Kd3 {[%emt 0:00:08]} Be5 {[%emt 0:00:25] Wards off Ra1} 61. Ra2 {[%emt 0:00:33]} Bh5 {[%emt 0:00:57]} (61... Be8 $16) 62. Rf2+ {[%emt 0:00:15]} Ke6 {[%emt 0:00:26]} 63. Rg2 {[%emt 0:00:05] Inhibits Bg6+.} Bf3 {[%emt 0:00:27]} 64. Rg1 {[%emt 0:00:45]} (64. Rg5 $142) 64... Be4+ {[%emt 0:00:13]} (64... Bh5 $16 65. Ke3 Bc3) 65. Ke3 $18 {[%emt 0:00:12]} Bf5 {[%emt 0:00:42]} 66. Bb6 {[%emt 0:00:31]} Bf6 {[%emt 0:00:50]} 67. h5 {[%emt 0:00:05]} Be4 {[%emt 0:00:18]} (67... Be7 {was worth a try.} 68. Bd4 Bf8) 68. Bd4 {[%emt 0:00:33] Intending Bxf6 and mate.} Be7 {[%emt 0:00:18]} 69. Rg8 {[%emt 0:01:40] Dodges Bf8} (69. h6 $142) 69... Kf5 {[%emt 0:00:15]} 70. Kf2 {[%emt 0:00:21]} Bh4+ {[%emt 0:00:22]} 71. Kg1 {[%emt 0:00:23] Strongly threatening h6.} Bg5 {[%emt 0:00:24]} 72. Kf2 {[%emt 0:00:27] Wards off Bf3} (72. Bc5 $142) 72... Bh4+ $1 {[%emt 0:00:31] This pair of bishops is nice.} 73. Ke2 {[%emt 0:00:04] aiming for h6.} Bg5 {[%emt 0:00:28]} 74. Be3 {[%emt 0:00:36]} Bf6 {[%emt 0:00:03]} 75. h6 {[%emt 0:00:41] Hoping for h7.} d4 $2 {[%emt 0:00:10]} (75... Ke6 76. Ra8 d4 77. Re8+ Kd5) 76. Bc1 {[%emt 0:00:59]} Ke6 {[%emt 0:00:50]} 77. Rg1 {[%emt 0:00:56]} (77. Re8+ $142 Kd5 78. Ra8) 77... Kf7 {[%emt 0:00:27]} 78. Bf4 {[%emt 0:00:28]} Bf5 {[%emt 0:00:27]} 79. Bd6 {[%emt 0:00:30]} Be4 {[%emt 0:00:49]} 80. Bc5 {[%emt 0:00:28]} Bf5 {[%emt 0:00:17]} 81. Kf3 {[%emt 0:00:27]} d3 {[%emt 0:00:59]} 82. Kf4 {[%emt 0:00:13]} Bg6 {[%emt 0:00:27]} 83. Ke3 {[%emt 0:00:25]} Bh4 $2 {[%emt 0:00:22]} (83... d2 84. Kxd2 Bf5 (84... Bh7 $2 85. Ke3 $18) 85. Ke3) (83... Bc3 $18 84. Bd4 Bxd4+ 85. Kxd4 Kf6) 84. Bd4 {[%emt 0:00:23]} Be7 {[%emt 0:00:07] [#]} 85. h7 $1 {[%emt 0:00:15] Weighted Error Value: White=0.15 (very precise) /Black=0.10 (very precise) .  Missed win:     	White=1     	---        Mistake:       	White=5     	Black=8      Inaccurate:     	White=3     	Black=3      OK:         	White=30    	Black=28     Best:        	White=9     	Black=8      Strong:       	---       	Black=4} 1-0